Cogmind - Beta 9.6 *** ADVENTURER MODE // 2020.07.21 @ 19:41:30 Player: Plexion Result: Destroyed by Y-72 Warden with Quantum Rifle Performance ------------- Evolutions (7) 3500 Regions Visited (8) 1600 Robots Destroyed (101) 505 Value Destroyed (2832) 2832 Prototype IDs (7) 140 Alien Tech Used (0) 0 Bonus (-218) -218 TOTAL SCORE: 8359 Bonus ------- High Alert Combat Kills 34 Follower Combat Kills 35 Friendly Fire -287 Cogmind --------- Core Integrity 0/1300 Matter 48/300 Energy 100/100 System Corruption 0% Temperature Cool (18) Movement Core (550) Ox10 Location -3/Research Parts ------- > --- POWER (2) -------- (None) > --- PROPULSION (4) --- (None) > --- UTILITY (13) ----- High-capacity Storage Unit Enhanced Optical Array Improved Signal Interpreter Advanced Signal Interpreter Advanced Terrain Scan Processor > --- WEAPON (2) ------- (None) > --- INVENTORY (12) --- Micro Fission Core Medium Storage Unit Gravity Neutralizing Apparatus Advanced Sensor Array Arc Projector Coil Gun KE Penetrator Rocket Launcher Peak State ------------ > --- POWER ------------ Micro Fission Core Micro Fission Core > --- PROPULSION ------- Cooled Nuclear Pulse Thruster Impulse Thruster Impulse Thruster Q-thruster > --- UTILITY ---------- Medium Storage Unit Enhanced Optical Array Advanced Sensor Array Improved Signal Interpreter Improved Signal Interpreter Advanced Signal Interpreter Advanced Terrain Scan Processor Experimental Thermal Shield Hacking Suite Advanced Hacking Suite Improved System Shield > --- WEAPON ----------- (None) > --- INVENTORY -------- Nuclear Pulse Thruster Nuclear Pulse Thruster Advanced Sensor Array Arc Projector Coil Gun KE Penetrator Rocket Launcher [Rating: 86] Favorites ----------- Power Light Nuclear Core Engine Light Angular Momentum Engine Power Core Light Nuclear Core Propulsion Nuclear Pulse Thruster Treads Light Treads Leg Aluminum Leg Wheel Wheel Hover Unit Aerolev Unit Flight Unit Nuclear Pulse Thruster Utility Medium Storage Unit Device Improved Sensor Array Storage Medium Storage Unit Processor Improved Signal Interpreter Hackware Hacking Suite Protection Core Shielding Weapon Katana Energy Gun Heavy EM Pulse Gun Ballistic Gun Assault Rifle Special Weapon Plasma Cutter Impact Weapon Maul Slashing Weapon Katana Piercing Weapon Force Lance Build | -11 -10 -9 -8 -7 -6 -5 -4 -3 ------- Run | Scr Mat Mat Mat Fac Fac Fac Fac Res Slots Evolved 14 | . . 2 2 2 2 2 2 2 Power 1 | . . . . 1 . . . . Propulsion 2 | . . . 1 1 . . . . Utility 11 | . . 2 1 . 2 2 2 2 Weapon . | . . . . . . . . . Parts Attached 145 | 6 12 22 21 15 11 18 20 20 Power 25 | 1 1 4 3 4 4 3 3 2 Engine 6 | 1 . 1 . 2 2 . . . Core 19 | . 1 3 3 2 2 3 3 2 Reactor . | . . . . . . . . . Propulsion 49 | 2 . 7 7 5 5 6 9 8 Treads 2 | . . . 2 . . . . . Leg 3 | . . 3 . . . . . . Wheel 11 | 2 . 4 5 . . . . . Hover 5 | . . . . 5 . . . . Flight 28 | . . . . . 5 6 9 8 Utility 33 | 1 6 2 2 3 2 3 6 8 Device 8 | . 1 1 . 2 . . 1 3 Storage 7 | 1 4 . . . . . . 2 Processor 10 | . 1 1 1 . 1 1 3 2 Hackware 7 | . . . . 1 1 2 2 1 Protection 1 | . . . 1 . . . . . Artifact . | . . . . . . . . . Weapon 38 | 2 5 9 9 3 . 6 2 2 Energy Gun 15 | 1 5 2 4 1 . 2 . . Energy Cannon . | . . . . . . . . . Ballistic Gun 10 | 1 . 3 4 . . 2 . . Ballistic Cannon . | . . . . . . . . . Launcher . | . . . . . . . . . Special Weapon 1 | . . . . . . . . 1 Impact Weapon 3 | . . 3 . . . . . . Slashing Weapon 8 | . . 1 1 2 . 2 2 . Piercing Weapon 1 | . . . . . . . . 1 Special Melee Weapon . | . . . . . . . . . Unidentified Prototypes 5 | . . 1 . . 1 . 1 2 Parts Lost 55 | . 2 7 11 2 . 11 7 15 Power 10 | . . 2 2 1 . 2 1 2 Propulsion 24 | . . 3 5 . . 5 4 7 Utility 11 | . . . . 1 . 4 1 5 Weapon 10 | . 2 2 4 . . . 1 1 Highest Loss Streak 7 | . 1 3 7 2 . 6 3 6 Average Slot Usage (%) 80 | . 95 91 86 96 84 71 62 66 Engine 1 | . 2 . . 6 2 1 . . Core 8 | . 11 10 7 7 9 8 8 6 Treads 1 | . . . 7 . . . . . Wheel 7 | . 28 16 13 . . . . . Hover 2 | . . . . 30 5 . . . Flight 9 | . . . . . 20 22 17 15 Device 5 | . . 9 9 4 6 4 3 2 Storage 12 | . 23 22 18 15 9 5 5 4 Processor 9 | . . 9 9 7 6 5 16 21 Hackware 6 | . . . . 6 13 14 6 11 Energy Gun 3 | . 13 7 4 2 . . . . Ballistic Gun 5 | . 14 9 11 7 1 . . . Slashing Weapon 2 | . . . 1 4 6 4 4 . Naked Turns . | . . . . . . . . . Heaviest Build 49 | 12 26 28 29 38 32 27 23 49 Greatest Support 44 | 26 26 32 40 44 44 33 34 44 Greatest Overweight (x) 7 | . . 2 7 . 3 1 2 4 Average Overweight (x) . | . . . . . . . . . Largest Inventory Capacity 16 | 6 12 12 12 12 12 8 8 16 Average Capacity 10 | 5 9 12 12 12 10 8 8 9 Most Carried 12 | 4 10 9 12 12 12 8 8 10 Average Carried 7 | 2 6 5 9 7 8 7 7 7 Final Capacity 12 | 6 12 12 12 12 8 8 8 12 Final Carried 11 | 4 9 7 11 9 8 7 8 8 Class Distribution -------------------- 33% | Scavenger-Mutant 26% | Hacker-Sprinter 12% | Hacker-Scout 11% | Mutant 9% | Hacker-Mutant 3% | Scavenger-Sprinter Dominant Class ---------------- Mutant | -10/Materials Scavenger-Mutant | -9/Materials Scavenger-Mutant | -8/Materials Hacker-Mutant | -7/Factory Hacker-Sprinter | -6/Factory Hacker-Sprinter | -5/Factory Hacker-Scout | -4/Factory Hacker-Scout | -3/Research Resources | -11 -10 -9 -8 -7 -6 -5 -4 -3 ----------- Run | Scr Mat Mat Mat Fac Fac Fac Fac Res Matter Collected 1891 | 266 224 351 531 188 110 173 20 28 Remotely . | . . . . . . . . . Salvage Created 4121 | 60 617 879 1096 411 349 629 80 . Parts 222 | 2 30 54 62 25 9 34 6 . Haulers Intercepted 12 | . 2 2 2 1 3 2 . . Recyclers Shooed 1 | . . . 1 . . . . . Parts Field Recycled . | . . . . . . . . . Retrieved Matter . | . . . . . . . . . Parts Self-Destructed . | . . . . . . . . . Prevented . | . . . . . . . . . Kills | -11 -10 -9 -8 -7 -6 -5 -4 -3 ------- Run | Scr Mat Mat Mat Fac Fac Fac Fac Res Combat Hostiles Destroyed 69 | . 13 19 20 6 . 9 2 . Melee 12 | . . . . 3 . 7 2 . Guns 54 | . 13 16 20 3 . 2 . . AOE 3 | . . 3 . . . . . . Classes Destroyed 11 | 1 3 4 2 1 . . . . Worker 5 | . . 4 . . 1 . . . Builder 2 | . . 1 1 . . . . . Hauler 12 | . 2 2 2 1 3 2 . . Recycler 2 | 1 . . 1 . . . . . Operator 5 | . . 1 2 1 1 . . . Watcher 6 | . . . 2 1 . 3 . . Swarmer 22 | . 3 6 7 . . 6 . . Grunt 34 | . 10 11 9 4 . . . . Duelist 2 | . . . 1 1 . . . . Sentry 5 | . . 2 3 . . . . . Programmer 6 | . . . . 1 . 3 2 . Best Kill Streak 5 | 1 5 4 4 3 2 4 1 . Combat Bots Only 4 | . 3 4 4 3 . 4 1 . Max Kills in Single Turn 3 | 1 1 3 2 1 1 1 1 . Gunslinging 1 | . . . 1 . . . . . Exploded 3 | . . 3 . . . . . . Melee 1 | . . . . 1 . 1 1 . Uniques/NPCs Destroyed . | . . . . . . . . . Combat | -11 -10 -9 -8 -7 -6 -5 -4 -3 -------- Run | Scr Mat Mat Mat Fac Fac Fac Fac Res Damage Taken 5775 | . 421 510 917 373 . 888 605 2061 Core 2235 | . 72 136 191 24 . 245 253 1314 Absorbed by Shields . | . . . . . . . . . Core Remaining (%) 81 | 100 71 66 65 96 100 75 78 . Volleys Fired 196 | 2 38 57 80 12 . 6 . 1 Largest 2 | 2 2 2 2 2 . 2 . 1 Hottest 110 | 60 85 90 110 80 . 85 . 20 Shots Fired 376 | 4 72 105 158 24 . 12 . 1 Gun 375 | 4 72 105 158 24 . 12 . . Cannon . | . . . . . . . . . Launcher . | . . . . . . . . . Special 1 | . . . . . . . . 1 Kinetic 231 | 2 38 58 115 12 . 6 . . Thermal 49 | 2 29 . 17 . . . . 1 Explosive . | . . . . . . . . . Electromagnetic 96 | . 5 47 26 12 . 6 . . Robot Hit Streak 39 | 4 31 39 32 10 . 9 . . Robot Miss Streak 6 | . 1 2 6 2 . 2 . . Penetration Max . | . . . . . . . . . Secondary Targets 3 | . 1 . 2 . . . . . Max Gunslinging Chain 1 | . 1 . 1 . . . . . Shots Hit Robots 386 | 4 64 90 126 42 12 37 11 . Core Hits 166 | 2 29 34 52 20 5 20 4 . Critical Hits 4 | . . . 2 . . 1 1 . Critical Kills 2 | . . . 1 . . 1 . . Critical Parts Destroyed 2 | . . . 1 . . . 1 . Melee Attacks 460 | . . 34 4 66 60 168 110 18 Impact 30 | . . 30 . . . . . . Slashing 412 | . . 4 4 66 60 168 110 . Piercing 18 | . . . . . . . . 18 Sneak Attacks 13 | . . 2 1 2 6 2 . . Combat Hostiles . | . . . . . . . . . Follow-up Attacks . | . . . . . . . . . Damage Inflicted 7871 | 42 782 1656 1832 1090 886 1226 357 . Guns 4012 | 42 782 1175 1600 270 . 143 . . Cannons . | . . . . . . . . . Explosions 345 | . . 276 69 . . . . . Melee 3514 | . . 205 163 820 886 1083 357 . Ramming . | . . . . . . . . . Kinetic 2399 | 21 375 579 1110 197 . 117 . . Thermal 870 | 21 327 276 246 . . . . . Explosive . | . . . . . . . . . Electromagnetic 1088 | . 80 596 313 73 . 26 . . Impact 205 | . . 205 . . . . . . Slashing 3309 | . . . 163 820 886 1083 357 . Piercing . | . . . . . . . . . Highest Corruption 7 | . 1 . . 1 . 7 2 . Average Corruption 2 | . 1 . . 1 . 3 1 . Corruption Purged . | . . . . . . . . . Effects 18 | . 1 . . 2 . 10 5 . Message Errors 4 | . . . . 1 . 2 1 . Matter Fused 3 | . . . . . . 3 . . Heat Flow Errors 3 | . . . . . . . 3 . Energy Discharges 2 | . . . . . . 2 . . Data Loss (minor) 3 | . 1 . . . . 1 1 . Data Loss (major) 1 | . . . . . . 1 . . Targeting Errors 2 | . . . . 1 . 1 . . Overload Shots . | . . . . . . . . . Overflow Damage 464 | . . 58 123 41 217 15 10 . Projectiles . | . . . . . . . . . Explosions 41 | . . 13 28 . . . . . Melee 423 | . . 45 95 41 217 15 10 . Knockbacks . | . . . . . . . . . Impact . | . . . . . . . . . Kinetic . | . . . . . . . . . Secondary . | . . . . . . . . . Self-Inflicted Damage 89 | . . 60 29 . . . . . Shots 4 | . . 3 1 . . . . . Rammed . | . . . . . . . . . Targets Rammed . | . . . . . . . . . Kicked . | . . . . . . . . . Crushed . | . . . . . . . . . Highest Temperature 267 | . 180 126 72 243 2 83 267 . Average Temperature 50 | . 51 33 17 102 1 38 109 . Received Heat Transfer 1485 | . 249 222 324 198 . 45 159 288 Siege Activations . | . . . . . . . . . Robots Corrupted . | . . . . . . . . . Combat Hostiles . | . . . . . . . . . Parts Fried 7 | . . 7 . . . . . . Impact Corruptions 2 | . . 2 . . . . . . Robots Melted . | . . . . . . . . . Combat Hostiles . | . . . . . . . . . Parts Melted 2 | . . . 2 . . . . . Heat Transferred 1679 | 50 735 350 544 . . . . . Parts Sabotaged . | . . . . . . . . . Parts Stolen . | . . . . . . . . . Parts Stripped . | . . . . . . . . . Power Chain Reactions 6 | . . 4 2 . . . . . Missiles Intercepted . | . . . . . . . . . Alert | -11 -10 -9 -8 -7 -6 -5 -4 -3 ------- Run | Scr Mat Mat Mat Fac Fac Fac Fac Res Peak Influence 474 | 5 225 287 342 156 153 216 474 178 Average Influence 129 | 2 90 137 177 69 86 97 211 99 Maximum Alert Level 2 | . 1 1 1 . . 1 2 . Low Security (%) 80 | 100 91 80 61 100 100 93 49 100 Level 1 14 | . 8 19 38 . . 6 21 . Level 2 4 | . . . . . . . 29 . Level 3 . | . . . . . . . . . Level 4 . | . . . . . . . . . Level 5 . | . . . . . . . . . High Security . | . . . . . . . . . Max Security . | . . . . . . . . . Squads Dispatched 16 | . . 3 4 2 2 2 2 1 Investigation 2 | . . . 1 . 1 . . . Extermination 7 | . . . . 1 1 2 2 1 Reinforcement 6 | . . 3 2 1 . . . . Assault . | . . . . . . . . . Garrison 1 | . . . 1 . . . . . Intercept . | . . . . . . . . . Construction Impeded 1 | . . 1 . . . . . . Haulers Reinforced . | . . . . . . . . . Stealth | -11 -10 -9 -8 -7 -6 -5 -4 -3 --------- Run | Scr Mat Mat Mat Fac Fac Fac Fac Res Distress Signals 7 | . 1 2 3 . . . . 1 Communications Jammed . | . . . . . . . . . Distress Signals . | . . . . . . . . . Times Spotted 154 | . 14 28 38 10 4 26 18 16 Peak Tracking Total 9 | . 5 4 6 4 3 6 9 9 Tactical Retreats 22 | . . 2 6 . 2 5 3 4 Traps | -11 -10 -9 -8 -7 -6 -5 -4 -3 ------- Run | Scr Mat Mat Mat Fac Fac Fac Fac Res Traps Triggered 6 | . 1 . . 2 . . 2 1 Indirectly . | . . . . . . . . . Trap Hack Attempts . | . . . . . . . . . Triggered . | . . . . . . . . . Disarmed . | . . . . . . . . . Reprogrammed . | . . . . . . . . . Reused . | . . . . . . . . . Traps Extracted . | . . . . . . . . . Installed . | . . . . . . . . . Triggered . | . . . . . . . . . Machines | -11 -10 -9 -8 -7 -6 -5 -4 -3 ---------- Run | Scr Mat Mat Mat Fac Fac Fac Fac Res Machines Disabled 5 | . . 2 2 . 1 . . . Max in Single Turn 2 | . . 1 2 . 1 . . . Machines Sabotaged . | . . . . . . . . . Garrisons Compromised . | . . . . . . . . . Overloaded Fab Kills . | . . . . . . . . . Fab Network Shutdowns 1 | . . . . . . . 1 . Hacking | -11 -10 -9 -8 -7 -6 -5 -4 -3 --------- Run | Scr Mat Mat Mat Fac Fac Fac Fac Res Machines Accessed 50 | . 5 7 6 6 4 12 6 4 Terminals 37 | . 4 6 4 6 2 9 4 2 Fabricators 6 | . . . . . 1 2 2 1 Repair Stations . | . . . . . . . . . Recycling Units 5 | . 1 1 1 . . 1 . 1 Scanalyzers 2 | . . . 1 . 1 . . . Garrison Access . | . . . . . . . . . Total Hacks 147 | . 11 22 14 20 14 36 20 10 Successful 85 | . 4 8 8 13 6 27 13 6 Failed 62 | . 7 14 6 7 8 9 7 4 Catastrophic 9 | . 2 1 2 . . 1 3 . Database Lockouts . | . . . . . . . . . Manual 109 | . 6 21 10 19 6 28 12 7 Terminals 114 | . 8 21 10 20 6 30 12 7 Fabricators 20 | . . . . . 5 5 8 2 Repair Stations . | . . . . . . . . . Recycling Units 8 | . 3 1 2 . . 1 . 1 Scanalyzers 5 | . . . 2 . 3 . . . Garrison Access . | . . . . . . . . . Terminal Hacks 30 | . 3 5 1 6 1 13 1 . Part Schematic 5 | . . . . 1 . 4 . . Level Access Points 1 | . . . . . . 1 . . Terminal Index 4 | . . . . 1 1 2 . . Fabricator Index 5 | . . . . . . 4 1 . Scanalyzer Index 1 | . . . 1 . . . . . Unreport Threat 2 | . . . . 1 . 1 . . Hauler Manifests 4 | . 1 1 . 1 . 1 . . Registered Prototypes 2 | . . 1 . 1 . . . . Zone Layout 6 | . 2 3 . 1 . . . . Fabricator Hacks 15 | . . . . . 1 4 8 2 Load Schematic 8 | . . . . . 1 2 4 1 Build 7 | . . . . . . 2 4 1 Repair Station Hacks . | . . . . . . . . . Recycling Unit Hacks 6 | . 1 1 2 . . 1 . 1 Retrieve Components 6 | . 1 1 2 . . 1 . 1 Scanalyzer 4 | . . . 2 . 2 . . . Insert Component 3 | . . . 2 . 1 . . . Analyze 1 | . . . . . 1 . . . Garrison Access Hacks . | . . . . . . . . . Unauthorized Hacks 30 | . . 2 3 7 2 9 4 3 Terminals 30 | . . 2 3 7 2 9 4 3 Track 2 | . . . . 1 . 1 . . Assimilate 4 | . . . . 1 1 . . 2 Botnet 24 | . . 2 3 5 1 8 4 1 Fabricators . | . . . . . . . . . Repair Stations . | . . . . . . . . . Recycling Units . | . . . . . . . . . Scanalyzers . | . . . . . . . . . Garrison Access . | . . . . . . . . . Data Cores Recovered . | . . . . . . . . . Used . | . . . . . . . . . Hacking Detections 42 | . 4 6 4 6 4 9 5 4 Full Trace Events 1 | . . 1 . . . . . . Feedback Events . | . . . . . . . . . Feedback Blocked . | . . . . . . . . . Robot Schematics Acquired . | . . . . . . . . . Robots Built . | . . . . . . . . . Matter . | . . . . . . . . . Time . | . . . . . . . . . Total Robot Build Rating . | . . . . . . . . . Part Schematics Acquired 6 | . . . . 1 1 4 . . Parts Built 10 | . . . . . . 2 6 2 Matter 1308 | . . . . . . 424 694 190 Time 505 | . . . . . . 159 299 47 Total Part Build Rating 47 | . . . . . . 12 25 10 Parts Repaired . | . . . . . . . . . Time . | . . . . . . . . . Parts Recycled . | . . . . . . . . . Recycled Matter . | . . . . . . . . . Retrieved Matter . | . . . . . . . . . Retrieved Components 19 | . 7 . 8 . . 2 . 2 Parts Scanalyzed 1 | . . . . . 1 . . . Part Schematics Acquired 1 | . . . . . 1 . . . Parts Damaged . | . . . . . . . . . Bothacking | -11 -10 -9 -8 -7 -6 -5 -4 -3 ------------ Run | Scr Mat Mat Mat Fac Fac Fac Fac Res Used RIF Installer . | . . . . . . . . . Robots Hacked . | . . . . . . . . . Non-combat . | . . . . . . . . . Combat . | . . . . . . . . . Robot Hacks Applied . | . . . . . . . . . Relay Couplers Released . | . . . . . . . . . Robots Rewired 1 | . . . . 1 . . . . Allies Hacked . | . . . . . . . . . Hacks Repelled . | . . . . . . . . . Allies | -11 -10 -9 -8 -7 -6 -5 -4 -3 -------- Run | Scr Mat Mat Mat Fac Fac Fac Fac Res Total Allies 3 | . . . . 1 1 . . 1 Largest Group 1 | . . . . 1 1 . . 1 Highest-Rated Group 30 | . . . . 30 26 . . 26 Highest-Rated Ally 30 | . . . . 30 26 . . 26 Total Orders 1 | . . . . . . . . 1 STAY 1 | . . . . . . . . 1 Ally Attacks 1 | . . . . 1 . . . . Total Damage 40 | . . . . 40 . . . . Kills 1 | . . . . 1 . . . . Allies Corrupted . | . . . . . . . . . Allies Melted . | . . . . . . . . . Intel | -11 -10 -9 -8 -7 -6 -5 -4 -3 ------- Run | Scr Mat Mat Mat Fac Fac Fac Fac Res Robot Analysis Total . | . . . . . . . . . Derelict Logs Recovered . | . . . . . . . . . Drone Launches . | . . . . . . . . . Drone Recoveries . | . . . . . . . . . Exploration | -11 -10 -9 -8 -7 -6 -5 -4 -3 ------------- Run | Scr Mat Mat Mat Fac Fac Fac Fac Res Turns Passed 6607 | 57 542 965 1116 554 585 1219 1016 553 Spaces Moved 6766 | 46 378 539 620 732 1031 1549 1000 871 Core 14 | 7 . . 7 . . . . . Treads 226 | . . . 226 . . . . . Legs 71 | . . 71 . . . . . . Wheels 1272 | 39 378 468 387 . . . . . Hover 926 | . . . . 732 194 . . . Flight 4257 | . . . . . 837 1549 1000 871 Fastest Speed 26 | 50 90 90 80 38 31 31 29 26 Average Speed 51 | 83 90 103 116 38 33 31 37 39 Slowest Speed 400 | 90 90 180 400 40 280 120 200 360 Overloaded Moves 170 | . . . . . . . 104 66 Propulsion Burnouts . | . . . . . . . . . Robots Hopped 1 | . . . . . . . . 1 Cave-ins Triggered 2 | . . . . . . 1 . 1 Exploration Rate (%) 33 | 3 56 54 41 23 24 40 31 30 Regions Visited 8 Branch Regions . Pre-discovered Areas . | . . . . . . . . . Known Exits Taken 6 | . . 1 1 1 1 1 1 . Unknown Exits Taken 2 | 1 1 . . . . . . . Scrap Searched . | . . . . . . . . . Spaces Dug 366 | . . 22 2 45 47 134 99 17 Terrain Destroyed 383 | . . 34 7 45 47 134 99 17 Melee 366 | . . 22 2 45 47 134 99 17 Projectile . | . . . . . . . . . AOE 17 | . . 12 5 . . . . . Actions | -11 -10 -9 -8 -7 -6 -5 -4 -3 --------- Run | Scr Mat Mat Mat Fac Fac Fac Fac Res Total 8788 | 57 509 777 848 879 1190 2015 1469 1044 Wait 1087 | . 65 108 99 25 69 264 336 121 Move 6754 | 45 377 538 619 731 1030 1547 999 868 Hop 1 | . . . . . . . . 1 Pick Up 44 | 4 8 6 17 2 1 2 1 3 Fast Attach 60 | 6 2 5 4 4 6 7 15 11 Attach 48 | . 5 10 8 6 4 5 4 6 Detach 35 | . 3 6 . 5 10 4 3 4 Swap 37 | . 5 7 9 5 1 6 1 3 Drop 46 | . 6 6 8 5 9 5 . 7 Fire 196 | 2 38 57 80 12 . 6 . 1 Melee 460 | . . 34 4 66 60 168 110 18 Ram . | . . . . . . . . . Kick . | . . . . . . . . . Crush . | . . . . . . . . . Escape Stasis 15 | . . . . 13 . 1 . 1 Rewire 5 | . . . . 5 . . . . Trap . | . . . . . . . . . Miscellaneous . | . . . . . . . . . Route ------- -11/Scrapyard -10/Materials (discovered 2 exits: *Mat / *Min) -9/Materials (discovered 3 exits: *Mat x2 / [*Min]) -8/Materials (discovered 2 exits: *Fac / *Sto) -7/Factory -6/Factory (discovered 2 exits: *Fac / [*Low]) -5/Factory (discovered 4 exits: *Fac x4) -4/Factory (discovered 2 exits: *Res x2) -3/Research History --------- Turn | Location | Event 12 | -11/Scrapyard | Discovered new exit (range 16) 58 | -11/Scrapyard | Entered Materials 200 | -10/Materials | Discovered new exit (range 15) 336 | -10/Materials | Build established: Mutant 337 | -10/Materials | Identified exit to Mines 480 | -10/Materials | Discovered new exit (range 10) 600 | -10/Materials | Entered another Materials area 600 | -9/Materials | Evolved 2 slots: Utility x2 770 | -9/Materials | Discovered new exit (range 22) 933 | -9/Materials | Lost 3 parts (2n1w) 947 | -9/Materials | Discovered new exit (range 8) 1231 | -9/Materials | Build established: Scavenger-Mutant 1548 | -9/Materials | Discovered new exit (range 13) 1564 | -9/Materials | Identified exit to Materials 1565 | -9/Materials | Entered another Materials area 1565 | -8/Materials | Evolved 2 slots: Propulsion x1, Utility x1 1797 | -8/Materials | Garrison activated, responded to threat 1986 | -8/Materials | Discovered new exit (range 7) 1991 | -8/Materials | Identified exit to Factory 2122 | -8/Materials | Lost 7 parts (1p3n3w) 2189 | -8/Materials | Lost 3 parts (1p2n) 2254 | -8/Materials | Discovered new exit (range 8) 2468 | -8/Materials | Identified exit to Storage 2681 | -8/Materials | Entered Factory 2681 | -7/Factory | Evolved 2 slots: Power x1, Propulsion x1 2979 | -7/Factory | Build established: Hacker-Mutant 3037 | -7/Factory | Discovered new exit (range 15) 3173 | -7/Factory | Identified exit to Factory 3235 | -7/Factory | Entered another Factory area 3235 | -6/Factory | Evolved 2 slots: Utility x2 3313 | -6/Factory | Build established: Scavenger-Mutant 3431 | -6/Factory | Found Prototype Processor 3431 | -6/Factory | Identified Exp. Targeting Computer 3615 | -6/Factory | Discovered new exit (range 15) 3804 | -6/Factory | Discovered new exit (range 12) 3808 | -6/Factory | Identified exit to Factory 3820 | -6/Factory | Entered another Factory area 3820 | -5/Factory | Evolved 2 slots: Utility x2 3855 | -5/Factory | Build established: Hacker-Sprinter 3917 | -5/Factory | Discovered new exit (range 15) 3929 | -5/Factory | Identified exit to Factory 3997 | -5/Factory | Discovered exit to Factory (range 5) 4445 | -5/Factory | Fabricated Adv. Hacking Suite? 4511 | -5/Factory | Spotted B-75 Beast 4555 | -5/Factory | Crushed by falling debris 4768 | -5/Factory | Fabricated Adv. Hacking Suite? 4993 | -5/Factory | Lost 6 parts (1p2n3u) 5039 | -5/Factory | Entered another Factory area 5039 | -4/Factory | Evolved 2 slots: Utility x2 5109 | -4/Factory | Discovered new exit (range 16) 5226 | -4/Factory | Fabricated Nuclear Pulse Thruster (x2) 5267 | -4/Factory | Spotted B-86 Titan 5439 | -4/Factory | Fabricated Adv. Sensor Array (x1) 5514 | -4/Factory | Fabricated Adv. Signal Interpreter (x2) 5537 | -4/Factory | Local fabrication network quarantined 5622 | -4/Factory | Fabricated Adv. Hacking Suite? 5737 | -4/Factory | Build established: Hacker-Scout 5950 | -4/Factory | Lost 3 parts (3n) 5992 | -4/Factory | Discovered new exit (range 17) 6055 | -4/Factory | Identified exit to Research 6055 | -4/Factory | Entered Research 6055 | -3/Research | Evolved 2 slots: Utility x2 6108 | -3/Research | Fabricated Nuclear Pulse Thruster (x2) 6255 | -3/Research | Found Prototype Device 6255 | -3/Research | Identified Exp. Thermal Shield 6313 | -3/Research | Spotted B-86 Titan 6476 | -3/Research | Crushed by falling debris 6540 | -3/Research | Lost 6 parts (1p3n2u) 6576 | -3/Research | Core integrity fell below 50% 6601 | -3/Research | Core integrity fell below 20% 6608 | -3/Research | Destroyed by Y-72 Warden with Quantum Rifle Last Messages --------------- 06587_ Slug penetrates Wall. 06590_ Penetrated by Slug. 06590_ Slug penetrates Y-72 Warden. 06590_ Hacking Suite destroyed. 06591_ Slug penetrates Wall. 06591_ Penetrated by Slug. 06591_ R-10 Processor collects Wheel. 06593_ K-01 Serf collects debris. 06594_ Slug penetrates Wall. 06594_ Penetrated by Slug. 06594_ Slug penetrates Wall. 06595_ R-10 Processor collects Terrain Scan Processor. 06597_ Slug penetrates Wall. 06598_ R-10 Processor collects Welding Torch. 06600_ Slug penetrates Wall. 06605_ Penetrated by Slug. 06605_ Slug penetrates Y-72 Warden. 06605_ Penetrated by Slug. 06607_ Slug penetrates Wall. 06607_ Penetrated by Slug. Map ----- +----------------------------------------------------+ | ???????????????????????# ??? | | ???????????????????????# ###+###### ##???? | | ???????????????????????###+####????????# #????? | | ???????????????????????# #?????????# #????? | | ???????????????????????# #?????????# #????? | | ???????????????????????# #?????????# #????? | | ???????????????????????# #?????????# #????? | | ???????????????????????# #?????????# #????? | | ???????????????????????# #?????????# #????? | | ???????????????????????# #?????????# #????? | | ???????????????????????# #?????????# ###### | | ???????????????????????# #?????????# =[= | | ???????????????????????# #?????????# =[= | | ???????????????????????# #?????????# [[= | | ????????????############ #?????????# | | ????????????# ] ######"#?????????# | | ????????????# #????# #?????????# | | ????????????# """"" #????# #??######## | | ????????????# """"" ###### #### | | ????????????+ """"" + | | ????????????# """"" ###### | | ????????????# #????# ### | | ????????????# ! ! #????# #?## ##### | | ????????????###########????# ####+##### """ " | | ?????????????############### # # """ " | | ??? + % RkR R Y @ Y %+ + """ " | | ?????????????#### ##########h## # """ " | | ???????????????????????????# ## # """ " | | ???????????????????????????# ## # """ " | | ???????????????????????????# ## #% | | ???????????????????????????# ## # | | ???????????????????????????# ## # | | ???????????????????????????# ## ! # """ " | | ????????????????????????####/########### """ " | | ????????????????????????# ##????????# """ " | | ????????????????????????# "########## """ " | | ????????????????????????# # # """ " | | ??????????????????????? / # # """ " | | ?????????????????????? # # # | | ?????????????????????#### # + | | ????????????????????????# # " | | ????????????????????????# # " | | ????????????????????????# # " | | ????????????????????????###### ##"" ""### | | ?????????????????????????????#########"" " #### | | ?????????????????????????????????????## """#??# | | ?????????????????????????????????????# # #??# | | ??????????????????????????????????????## # #?# | | ???????????????????????????????????????### ### | | ?????????????????????????????????????????# # # | +----------------------------------------------------+ Best States ------------- Heat Dissipation 46 Energy Generation 31 Energy Capacity 350 Matter Stores 300 Matter Capacity 300 Sight Range 22 Robot Scan Range 16 Terrain Scan Density 210 Resistance: KI 20 Resistance: TH 20 Resistance: EX 20 Resistance: EM 20 Resistance: I 20 Resistance: S 20 Resistance: P 20 Core Shielding 20 Evasion (%) 64 Recoil Reduction 2 Offensive Hacking 34 Defensive Hacking 20 Item Schematics ----------------- Hacking Suite | -7/Factory | Hacked Nuclear Pulse Thruster | -6/Factory | Scanalyzed Adv. Hacking Suite | -5/Factory | Hacked Adv. Sensor Array | -5/Factory | Hacked Adv. System Shield | -5/Factory | Hacked Adv. Signal Interpreter | -5/Factory | Hacked Robot Schematics ------------------ None Fabricated ------------ Adv. Hacking Suite | x1 | -5/Factory Adv. Hacking Suite | x1 | -5/Factory Nuclear Pulse Thruster | x2 | -4/Factory Adv. Sensor Array | x1 | -4/Factory Adv. Signal Interpreter | x2 | -4/Factory Adv. Hacking Suite | x1 | -4/Factory Nuclear Pulse Thruster | x2 | -3/Research Alien Tech Used ----------------- None Achievements -------------- Prolific Hacker Universal Adapter Watch This! Challenges ------------ None Game ------ Seed CompositeWarpNukerbomber Manual? 0 Play Time 01:34:00 Cumulative 54.3 hours Start 2020.07.21 @ 18:07:22 End 2020.07.21 @ 19:41:30 Sessions 1 Manual Loads 0 Difficulty Adventurer Special Mode None Game No. 66 Rogue 1 Adventurer 65 Explorer 0 Win Type - Total 1 Types 1/0/0/0/0/0/0 Lore% 32 Gallery% 46 Achievement% 38 Wizard Run 0 Options --------- ASCII 0 Keyboard 1 Movement Numpad Keybinds 0 Fullscreen 1 Font 18/SmallcapsGlow Map View 76x50 Tactical HUD 1 Map Filters NONE Filters NONE Steam 1 RUN: b707db85-f3b3-470b-a94d-eaf8aac04959